[Event "Turkish Championship 2022"]
[Site "Kemer-Antalya"]
[Date "2022.11.29"]
[Round "5.3"]
[White "Yilmaz, Mustafa"]
[Black "Yaran, Siar"]
[Result "1-0"]
[ECO "D36"]
[WhiteElo "2621"]
[BlackElo "2291"]
[Annotator "TA"]
[PlyCount "143"]
[EventDate "2022.11.25"]
[EventCountry "TUR"]
[SourceTitle "playchess.com"]
[Source "ChessBase"]
[SourceQuality "1"]
[TimeControl "40/5400+30:1800+30"]

{[%evp 25,143,38,38,38,38,23,38,32,35,24,25,27,26,22,25,23,26,33,39,31,18,15,51,61,49,24,10,10,24,0,17,9,13,15,23,41,43,8,16,-62,58,68,64,55,54,53,134,131,142,116,129,87,81,79,78,87,87,85,145,139,375,370,348,358,718,666,689,691,691,554,621,628,770,647,825,825,1145,1135,1092,839,1285,839,29953,29954,29955,29957,29964,29966,29966,29969,29969,29970,29971,29966,29966,29967,29971,29972,29972,29973,29973,29974,29974,29972,29973,29974,29976,29977,29977,29978,29978,29979,29979,29980,29985,29974,29987,29988,29988,29989]} 1. d4 d5 2. c4 e6 {[%emt 0:00:30]} 3. Nc3 {[%emt 0:01:00]} Nf6 {[%emt 0:00:30]} 4. cxd5 {[%emt 0:00:30]} exd5 {[%emt 0:00:30]} 5. Bg5 {[%emt 0:00:00]} Be7 {[%emt 0:00:30]} 6. e3 {[%emt 0:00:00]} c6 {[%emt 0:01:30]} 7. Bd3 {[%emt 0:00:30]} Nbd7 {[%emt 0:02:30]} 8. Nf3 {[%emt 0:00:30]} O-O {[%emt 0:01:30]} 9. Qc2 {[%emt 0:00:30]} Re8 {[%emt 0:01:30]} 10. O-O {[%emt 0:01:30]} h6 {[%emt 0:11:30]} 11. Bf4 {[%emt 0:01:30]} Nf8 {[%emt 0:03:30]} 12. h3 {[%emt 0:02:30]} Bd6 {[%emt 0:02:30] The main line 12...Bd6 scores better than 12...Ne6.} 13. Bxd6 {[%emt 0:11:30]} Qxd6 {[%emt 0:05:30]} 14. Rab1 {[%emt 0:00:30] D36: Queen's Gambit Declined: Exchange Variation: Main line (5 Bg5 c6 6 Qc2).} a5 {[%emt 0:05:30]} 15. Rfe1 $5 {[%emt 0:05:30][%mdl 4] A promising side line.} Be6 {[%emt 0:02:30] [#]} 16. Ne5 $146 {[%emt 0:01:30] White is slightly better.} ({Predecessor:} 16. a3 N8d7 17. Rbc1 b6 18. e4 dxe4 19. Nxe4 Nxe4 20. Bxe4 Bd5 21. Bxd5 Rxe1+ 22. Nxe1 cxd5 {½-½ (50) Bendana Aragon,J-Flores,J ICCF email 2003}) 16... N6d7 {[%emt 0:01:30][%cal Bf6d7,Bd7b6,Bb6c4][%mdl 32]} 17. f4 {[%emt 0:01:30]} f6 {[%emt 0:05:30]} 18. Nf3 {[%emt 0:00:00]} Nb6 {[%emt 0:12:30]} 19. Rbd1 {[%emt 0:04:00]} Rad8 {[%emt 0:02:30]} 20. Qf2 {[%emt 0:00:30]} Qc7 {[%emt 0:04:30]} 21. g4 {[%emt 0:06:30]} Nc4 {[%emt 0:04:30]} 22. f5 {[%emt 0:07:30]} Bf7 {[%emt 0:00:30]} 23. Re2 {[%emt 0:12:30]} Re7 {[%emt 0:08:30]} (23... Nd7 {is more complex.} 24. Nh4 b5 25. Ng6 b4) 24. Bxc4 {[%emt 0:04:30]} dxc4 {[%emt 0:00:30]} 25. e4 {[%emt 0:00:00]} b5 $1 {[%emt 0:00:30]} 26. Rde1 {[%emt 0:00:00]} b4 {[%emt 0:02:52] Against e5} 27. Na4 {[%emt 0:03:30]} Nd7 {[%emt 0:00:43][%cal Oc6c5]} 28. e5 {[%emt 0:10:30] Inhibits c5.} Bd5 {[%emt 0:00:04]} 29. Nh4 {[%emt 0:03:30] Threatening Ng6.} fxe5 {[%emt 0:00:21]} 30. Ng6 $1 {[%emt 0:00:30][%csl LRe5,LRe7] Against e4} Rde8 {[%emt 0:00:30]} 31. Qh4 {[%emt 0:03:58]} e4 $1 {[%emt 0:01:20]} (31... Rf7 32. dxe5 (32. Nxe5 Rfe7 $17) 32... Nf8 33. e6 $16) 32. Rg2 {[%emt 0:03:12]} (32. Nxe7+ $11 Rxe7 33. Rg2 (33. Qxe7 Qg3+ 34. Rg2 Qxe1+ 35. Kh2 e3 $11)) 32... Nf8 {[%emt 0:10:23]} 33. Nxe7+ $14 {[%emt 0:01:26]} Rxe7 {[%emt 0:00:47]} 34. Qg3 $1 $36 {[%emt 0:02:31][%mdl 2048] White is more active.} Qd8 {[%emt 0:05:24]} 35. Nc5 {[%emt 0:07:50]} Nh7 {[%emt 0:03:17] [#]} (35... Re8 $14) 36. h4 $1 $16 {[%emt 0:00:13] White is much more active.} e3 {[%emt 0:00:00] Prevents g5.} 37. Rge2 {[%emt 0:01:14]} Bf7 {[%emt 0:00:34]} 38. Ne6 {[%emt 0:04:58]} ({Resist} 38. Rxe3 $6 Qxd4 39. Ne6 Bxe6 $14) 38... Bxe6 {[%emt 0:00:37]} 39. Qxe3 {[%emt 0:01:04][%mdl 64] Pin} ({Much weaker is} 39. fxe6 $6 Rxe6 40. Rxe3 Qxd4 $11) 39... Nf6 {[%emt 0:01:32] Hoping for ...Nd5.} 40. fxe6 {[%emt 0:00:00] g5 is the strong threat.} Nxg4 {[%emt 0:00:00]} 41. Qf4 {[%emt 0:05:04]} h5 {[%emt 0:02:36]} (41... Nf6 $142) 42. Rf1 {[%emt 0:03:30][%cal Of4f7]} c3 $2 {[%emt 0:08:30] Loses the game.} (42... Nf6 $16 {was worth a try.} 43. Qe5 Qd5) 43. bxc3 $18 {[%emt 0:00:30]} bxc3 {[%emt 0:00:00]} 44. Qf7+ {[%emt 0:11:17]} Rxf7 $2 {[%emt 0:00:00]} (44... Kh7 45. Qxh5+ Nh6) 45. exf7+ {[%emt 0:00:30]} Kf8 {[%emt 0:00:30]} 46. Re8+ {[%emt 0:00:00]} Qxe8 {[%emt 0:00:00]} 47. fxe8=Q+ {[%emt 0:00:00]} Kxe8 {[%emt 0:00:00][%mdl 4096] Endgame KR-KN} 48. Rc1 {[%emt 0:02:56]} Nh6 {[%emt 0:00:00]} 49. Rxc3 {[%emt 0:00:27]} Nf5 {[%emt 0:00:00]} 50. Rxc6 {[%emt 0:01:03]} Nxh4 {[%emt 0:01:30]} 51. Rc5 {[%emt 0:01:07][%csl LRa5,LRh5]} g6 {[%emt 0:02:30]} 52. d5 {[%emt 0:03:10]} Kd7 {[%emt 0:01:30]} 53. Rxa5 {[%emt 0:01:11] aiming for Kf2.} Kd6 {[%emt 0:00:00]} 54. Kf2 {[%emt 0:00:39] White mates.} Nf5 {[%emt 0:01:00]} 55. Ra6+ {[%emt 0:01:28]} Kxd5 {[%emt 0:00:30]} 56. Rxg6 {[%emt 0:00:00]} Kc4 {[%emt 0:00:30]} 57. Rg5 {[%emt 0:03:13]} Nd6 {[%emt 0:02:08]} 58. Rxh5 {[%emt 0:00:01]} Kb4 {[%emt 0:03:37]} 59. Rh3 {[%emt 0:01:08]} Ne4+ {[%emt 0:00:37]} 60. Ke1 {[%emt 0:01:32]} Nc3 {[%emt 0:00:19] [#]} 61. a3+ $1 {[%emt 0:00:02]} Kc4 {[%emt 0:01:13]} 62. Kd2 {[%emt 0:00:12]} Na4 {[%emt 0:00:41]} 63. Kc2 {[%emt 0:00:16]} Nc5 {[%emt 0:00:36]} 64. Rh8 {[%emt 0:01:28]} Kb5 {[%emt 0:00:07]} 65. Rh4 {[%emt 0:01:52]} Na4 {[%emt 0:00:44]} 66. Rb4+ {[%emt 0:00:59]} Ka5 {[%emt 0:00:05]} 67. Kb3 {[%emt 0:00:41]} Nc5+ {[%emt 0:00:49]} 68. Kc4 {[%emt 0:00:18]} Ne4 {[%emt 0:00:46]} 69. Rb8 {[%emt 0:00:18]} Nd6+ {[%emt 0:00:06]} 70. Kd5 {[%emt 0:01:13]} Nb5 {[%emt 0:00:04]} 71. Kc5 {[%emt 0:00:27]} Nc7 {[%emt 0:00:02]} 72. Kc6 {[%emt 0:00:10] Weighted Error Value: White=0.09 (flawless) /Black=0.37} 1-0

[Event "Turkish Championship 2022"]
[Site "Kemer-Antalya"]
[Date "2022.11.29"]
[Round "5.4"]
[White "Ozsakallioglu, Okan"]
[Black "Koksal, Ege"]
[Result "1/2-1/2"]
[ECO "C42"]
[WhiteElo "2288"]
[BlackElo "2321"]
[Annotator "TA"]
[PlyCount "60"]
[EventDate "2022.11.25"]
[EventCountry "TUR"]
[SourceTitle "playchess.com"]
[Source "ChessBase"]
[SourceQuality "1"]
[TimeControl "40/5400+30:1800+30"]

{[%evp 14,60,26,29,18,14,12,13,12,6,9,6,6,17,17,0,2,0,12,6,10,0,0,0,5,0,0,0,0,0,0,0,0,0,0,0,0,0,0,0,30,0,32,0,0,0,29,0,0]} 1. e4 {[%emt 0:06:00]} e5 {[%emt 0:01:00]} 2. Nf3 {[%emt 0:00:30]} Nf6 {[%emt 0:00:00]} 3. Nxe5 {[%emt 0:00:30]} d6 {[%emt 0:00:00]} 4. Nf3 {[%emt 0:00:30]} Nxe4 {[%emt 0:00:30]} 5. d4 {[%emt 0:00:30]} d5 {[%emt 0:00:00]} 6. Bd3 {[%emt 0:00:00]} Be7 {[%emt 0:02:00]} 7. O-O {[%emt 0:00:00]} Bf5 {[%emt 0:00:30]} 8. c4 {[%emt 0:02:30]} dxc4 {[%emt 0:02:30] C42: Petroff Defence: 3 Nxe5 and unusual White 3rd moves.} 9. Bxc4 {[%emt 0:00:30]} O-O {[%emt 0:00:30]} 10. Nc3 {[%emt 0:04:30]} Nc6 {[%emt 0:20:30]} 11. Bd3 {[%emt 0:10:30]} Nxc3 {[%emt 0:07:30]} 12. bxc3 {[%emt 0:00:30]} Bxd3 {[%emt 0:00:30]} 13. Qxd3 {[%emt 0:00:00]} Qd7 {[%emt 0:01:30]} 14. Rb1 {[%emt 0:04:00]} b6 {[%emt 0:01:30]} 15. Re1 {[%emt 0:10:30] [#]} Rad8 $146 {[%emt 0:10:30]} ({Predecessor:} 15... Rae8 16. Bf4 Bd8 17. Qb5 Nb8 18. Qh5 g6 19. Qh6 Rxe1+ 20. Rxe1 Re8 21. Rc1 f6 {½-½ (50) Nayhebaver,M (2451)-Konopka,M (2391) Germany 2018}) 16. Bf4 {[%emt 0:00:30]} Rfe8 {[%emt 0:04:30]} 17. Re2 {[%emt 0:01:30]} h6 {[%emt 0:00:30]} 18. Rbe1 {[%emt 0:00:30]} Bd6 {[%emt 0:01:30]} 19. Rxe8+ {[%emt 0:00:30]} Rxe8 {[%emt 0:00:00]} 20. Rxe8+ {[%emt 0:02:30]} Qxe8 {[%emt 0:00:00]} 21. Bxd6 {[%emt 0:00:30]} cxd6 $11 {[%emt 0:00:30][%mdl 4096] Endgame KQN-KQN} 22. h3 {[%emt 0:00:30]} Na5 {[%emt 0:00:30]} 23. Qa6 {[%emt 0:00:30]} Qd7 {[%emt 0:00:30]} 24. c4 {[%emt 0:00:30]} Qc7 {[%emt 0:00:30]} 25. Nd2 {[%emt 0:02:30]} Nc6 {[%emt 0:10:30]} 26. Qb5 {[%emt 0:01:30]} Na5 {[%emt 0:01:30]} (26... Nxd4 $2 27. Qe8+ Kh7 28. Qe4+ f5 29. Qxd4 $18) 27. Qe8+ {[%emt 0:02:30]} Kh7 {[%emt 0:00:30]} 28. Qe4+ {[%emt 0:00:30]} Kg8 {[%emt 0:00:30]} 29. Qe8+ {[%emt 0:00:30]} Kh7 {[%emt 0:00:30]} 30. Qe4+ {[%emt 0:00:30]} Kg8 {[%emt 0:00:00] An interesting draw.   Weighted Error Value: White=0.06 (flawless) /Black=0.02 (flawless)} 1/2-1/2

[Event "Turkish Championship 2022"]
[Site "Kemer-Antalya"]
[Date "2022.11.29"]
[Round "5.5"]
[White "Kilic, Eray"]
[Black "Yilmazyerli, Mert"]
[Result "1/2-1/2"]
[ECO "B11"]
[WhiteElo "2437"]
[BlackElo "2534"]
[Annotator "TA"]
[PlyCount "87"]
[EventDate "2022.11.25"]
[EventCountry "TUR"]
[SourceTitle "playchess.com"]
[Source "ChessBase"]
[SourceQuality "1"]
[TimeControl "40/5400+30:1800+30"]

{[%evp 14,87,-6,-11,-10,-10,-5,-6,-8,-14,0,-6,-6,-12,-5,-15,-17,-17,-11,-12,-16,-20,-20,-11,-17,-18,-18,-16,-20,-15,0,0,0,0,0,0,26,9,29,29,20,12,10,12,13,14,18,9,10,0,0,0,6,0,0,0,0,0,0,0,0,0,0,0,0,0,0,0,0,0,0,0,0,0,0,0]} 1. e4 {[%emt 0:01:00]} c6 {[%emt 0:07:00]} 2. Nc3 {[%emt 0:00:30]} d5 {[%emt 0:00:30]} 3. Nf3 {[%emt 0:00:30]} Bg4 {[%emt 0:00:00]} 4. h3 {[%emt 0:00:00]} Bxf3 {[%emt 0:00:00]} 5. Qxf3 {[%emt 0:00:00]} e6 {[%emt 0:00:30]} 6. d4 {[%emt 0:00:00]} Nf6 {[%emt 0:00:00]} 7. Bd3 {[%emt 0:00:00]} dxe4 {[%emt 0:00:00]} 8. Nxe4 {[%emt 0:00:00]} Qxd4 {[%emt 0:00:00] B11: Caro-Kann: Two Knights Variation.} 9. c3 {[%emt 0:04:00]} Qd8 {[%emt 0:01:00]} 10. O-O {[%emt 0:01:30]} Nbd7 {[%emt 0:04:30]} 11. Rd1 {[%emt 0:09:30]} Be7 {[%emt 0:08:30]} 12. Bf4 {[%emt 0:00:30]} Nxe4 {[%emt 0:00:30]} 13. Bxe4 {[%emt 0:00:30]} Qc8 {[%emt 0:00:30] [#]} 14. Qg3 $146 {[%emt 0:02:30]} ({Predecessor:} 14. Rd2 Nf6 15. Rad1 O-O 16. Be5 Rd8 17. Bc2 Rxd2 18. Rxd2 Qe8 19. Rd4 Rd8 20. Rh4 {0-1 (30) Vakhlamov,I (2413)-Andreikin,D (2728) Chess.com INT 2021}) 14... Nf6 {[%emt 0:04:30]} 15. Bf3 {[%emt 0:00:30][%cal Od1d3]} (15. Qxg7 $2 Rg8 16. Qh6 Nxe4 $19) 15... O-O {[%emt 0:01:30]} 16. Bh6 {[%emt 0:07:30][%csl Gh6][%cal Rg3g7] [#] A strong pair of Bishops.} Ne8 {[%emt 0:00:30]} 17. Rd2 {[%emt 0:03:30]} Kh8 {[%emt 0:06:30]} 18. Be3 {[%emt 0:00:30]} Nf6 {[%emt 0:00:30]} 19. Rad1 {[%emt 0:01:30]} Rd8 {[%emt 0:02:30]} 20. Rxd8+ {[%emt 0:12:30]} Bxd8 {[%emt 0:00:30]} 21. Qd6 {[%emt 0:00:30] [#] Qf8+ is the strong threat.} Bb6 {[%emt 0:05:30]} 22. Bxb6 {[%emt 0:02:30]} axb6 {[%emt 0:00:30]} 23. Qe7 {[%emt 0:00:30]} Kg8 {[%emt 0:01:30]} (23... Rxa2 $2 24. Rd8+ $18 (24. Qxf7 Rxb2 25. Bg4 Qb8 $14) (24. Qxf7 Qb8 $14)) 24. c4 {[%emt 0:00:30]} h6 {[%emt 0:04:30]} (24... Rxa2 $2 {leads to mate.} 25. Rd8+) 25. a4 {[%emt 0:03:30]} (25. a3 $5) 25... Qb8 {[%emt 0:15:30]} (25... Rxa4 $2 26. Rd8+ $18) 26. b3 {[%emt 0:05:30]} e5 {[%emt 0:14:30]} 27. g3 {[%emt 0:08:30] The position is equal.} e4 {[%emt 0:02:30]} 28. Bxe4 {[%emt 0:02:30] Hoping for Bf5.} Qe8 {[%emt 0:01:23]} 29. Qxe8+ {[%emt 0:00:30]} Rxe8 $11 {[%emt 0:00:04][%mdl 4096] Endgame KRB-KRN} 30. Bf3 {[%emt 0:00:30]} Kf8 {[%emt 0:01:04]} 31. b4 {[%emt 0:04:30]} Ke7 {[%emt 0:01:51]} 32. b5 {[%emt 0:08:30]} Rc8 {[%emt 0:00:52][%cal Be8c8,Bc8c7,Bc7a7,Ba7a4,Ba4c4][%mdl 32]} 33. bxc6 {[%emt 0:00:30]} bxc6 {[%emt 0:00:30]} 34. Rb1 {[%emt 0:00:00]} Nd7 {[%emt 0:07:17]} 35. Bg4 {[%emt 0:00:00]} Rc7 {[%emt 0:00:00]} 36. Bxd7 {[%emt 0:12:46]} Kxd7 {[%emt 0:01:05]} 37. Rxb6 {[%emt 0:00:06] KR-KR} Ra7 {[%emt 0:02:21]} 38. c5 {[%emt 0:00:58]} Rxa4 {[%emt 0:01:52]} 39. Rb7+ $1 {[%emt 0:00:35]} Ke6 {[%emt 0:00:36]} 40. Rc7 {[%emt 0:00:30]} Rc4 {[%emt 0:00:30]} 41. Rxc6+ {[%emt 0:30:30]} Kd7 $1 {[%emt 0:00:00]} 42. Rd6+ {[%emt 0:00:00]} Ke7 {[%emt 0:00:05]} 43. Rc6 {[%emt 0:00:00]} Kd7 {[%emt 0:00:30]} 44. Rd6+ {[%emt 0:00:00] An interesting draw.   Weighted Error Value: White=0.02 (flawless) /Black=0.02 (flawless)} 1/2-1/2

[Event "Turkish Championship 2022"]
[Site "Kemer-Antalya"]
[Date "2022.11.30"]
[Round "6.1"]
[White "Yavuz, Efe Metehan"]
[Black "Yilmazyerli, Mert"]
[Result "1/2-1/2"]
[ECO "A01"]
[WhiteElo "2256"]
[BlackElo "2534"]
[Annotator "TA"]
[PlyCount "178"]
[EventDate "2022.11.25"]
[EventCountry "TUR"]
[SourceTitle "playchess.com"]
[Source "ChessBase"]
[SourceQuality "1"]
[TimeControl "40/5400+30:1800+30"]

{[%evp 10,177,2,-5,6,10,55,45,51,47,50,47,49,40,41,46,79,63,71,66,66,59,55,77,55,66,71,66,104,84,141,147,131,139,169,122,143,145,147,79,86,80,77,80,75,68,60,85,142,143,118,48,48,49,53,51,50,51,59,0,8,0,0,0,0,-14,-14,-14,-8,-8,-8,-8,-8,-8,-8,-8,-8,0,0,0,0,-63,-60,-60,-63,-65,0,-8,0,-58,-52,-52,-52,-52,-8,-46,0,-14,-14,-14,-8,-8,0,0,-4,-8,-8,-8,-8,-8,-8,-8,-8,-8,0,0,0,0,0,-8,-8,-8,-8,-8,0,-8,-8,-8,0,-8,0,-8,-8,-8,-8,-8,-8,-8,-8,-8,-8,-8,-8,-8,-8,-8,-8,-8,-8,-8,-8,-8,0,0,0,0,0,0,0,0,0,0,0,0,0,0,0,0,0,0]} 1. b3 {[%emt 0:01:00]} e5 {[%emt 0:04:00]} 2. Bb2 {[%emt 0:00:30]} Nc6 {[%emt 0:00:30]} 3. e3 {[%emt 0:00:30]} Nf6 {[%emt 0:00:00]} 4. Nf3 {[%emt 0:00:00]} e4 {[%emt 0:00:00]} 5. Nd4 {[%emt 0:00:00]} Nxd4 {[%emt 0:00:30]} 6. Bxd4 {[%emt 0:00:00]} d5 {[%emt 0:00:00] A01: Nimzowitsch-Larsen Opening.} 7. c4 {[%emt 0:01:00]} c5 {[%emt 0:16:00]} 8. Bxf6 {[%emt 0:01:30]} Qxf6 {[%emt 0:00:30] White is slightly better.} 9. Nc3 {[%emt 0:00:00]} d4 {[%emt 0:00:30]} 10. Nxe4 {[%emt 0:00:00]} Qe5 {[%emt 0:00:30]} 11. Bd3 {[%emt 0:05:30]} dxe3 {[%emt 0:05:30]} 12. dxe3 {[%emt 0:03:30]} Bf5 {[%emt 0:03:30]} 13. f4 $1 {[%emt 0:15:30]} Qe6 {[%emt 0:03:30]} 14. Qc2 {[%emt 0:07:30] [#]} Rd8 $146 {[%emt 0:05:30][%cal Od8d3]} ({Predecessor:} 14... g6 15. O-O-O O-O-O 16. Rhe1 Qe7 17. Nc3 Be6 18. Be4 Bg7 19. Bd5 Bd7 20. e4 Qf6 {1-0 (44) Perini,G (2242)-Deneuville,C (2206) ICCF email 2014}) 15. O-O-O {[%emt 0:04:30]} Be7 {[%emt 0:11:30][%cal Od8d3] aiming for ...Rxd3!} 16. Nf2 {[%emt 0:11:30]} Qxe3+ {[%emt 0:05:30]} 17. Kb1 {[%emt 0:00:00]} Bc8 {[%emt 0:12:30] [#]} 18. g3 {[%emt 0:02:00]} (18. Bxh7 Rxd1+ 19. Nxd1 (19. Rxd1 $2 g6 $19) 19... Qxf4 $17) 18... Qf3 {[%emt 0:04:30]} 19. Rhe1 {[%emt 0:02:30]} (19. Bxh7 $2 Rxd1+ 20. Rxd1 g6 21. Bxg6 (21. Rd3 $2 Qg2 $19) 21... Rxh2 $19) (19. Be4 {simplifies} Rxd1+ 20. Nxd1 Qh5 21. Re1) 19... Kf8 {[%emt 0:01:30]} (19... Qc6 $142) 20. Bf5 $16 {[%emt 0:08:30]} (20. Bxh7 $2 g6 21. Bxg6 (21. Rxd8+ $2 Bxd8 22. Qd2 Be7 $19) 21... Rxh2 22. Rxd8+ Bxd8 $19) 20... Rxd1+ {[%emt 0:05:40]} 21. Rxd1 {[%emt 0:03:30]} Qc6 {[%emt 0:03:04]} 22. Ng4 {[%emt 0:05:30]} (22. Bxh7 $2 g6 23. Qe2 Rxh7 $19) (22. Bxc8 $18 Qxc8 23. Qd3) 22... Bxf5 {[%emt 0:01:29]} 23. Qxf5 {[%emt 0:00:30]} g6 {[%emt 0:00:00] [#]} 24. Qd5 {[%emt 0:07:30]} (24. Qe5 f6 25. Qe2 h5 $16) (24. Qd7 $142 $1) 24... Qxd5 {[%emt 0:02:15]} 25. Rxd5 {[%emt 0:00:38][%mdl 4096] Endgame KRB-KRN} Ke8 {[%emt 0:00:07] Prevents Rd7.} 26. Ne5 {[%emt 0:00:28]} f6 {[%emt 0:05:33]} 27. Nd7 {[%emt 0:00:24]} b6 {[%emt 0:02:35]} 28. Nb8 $1 {[%emt 0:00:36]} Kf7 {[%emt 0:03:07]} ({Black should try} 28... Rf8) 29. Nc6 {[%emt 0:00:24]} Ke6 {[%emt 0:00:35] Against Rd7} 30. g4 {[%emt 0:01:53] White has more active pieces.} (30. Nxa7 Rd8 $14) ({White should play} 30. Rd2 $16) 30... Bd6 $1 $14 {[%emt 0:01:03]} 31. f5+ {[%emt 0:02:07]} (31. Nxa7 Bxf4 32. h3 h5 $17) 31... gxf5 {[%emt 0:00:30]} 32. gxf5+ {[%emt 0:00:30]} (32. Nxa7 $2 fxg4 33. Rd2 f5 34. Re2+ Kf6 $19) 32... Kd7 {[%emt 0:00:30]} 33. Nxa7 {[%emt 0:00:00]} Ke7 $1 {[%emt 0:00:00]} 34. b4 {[%emt 0:04:54]} (34. h4 $14) 34... cxb4 {[%emt 0:00:00]} 35. Nc6+ {[%emt 0:00:00]} Kd7 {[%emt 0:00:00]} 36. Nxb4 {[%emt 0:00:23]} Kc7 {[%emt 0:00:00]} 37. a3 {[%emt 0:03:03]} Bxh2 {[%emt 0:00:20]} 38. Rb5 {[%emt 0:01:04]} Be5 {[%emt 0:01:27]} 39. Nd5+ {[%emt 0:00:36]} Kc6 {[%emt 0:00:16]} 40. Rxb6+ {[%emt 0:00:54]} Kc5 {[%emt 0:00:00]} 41. Re6 {[%emt 0:09:36]} (41. Kc2 {with more complications.} h5 42. Kd3 h4 43. Rb5+) 41... Rf8 {[%emt 0:12:29]} 42. Re7 {[%emt 0:01:30]} Kxc4 {[%emt 0:01:30]} 43. Nb6+ {[%emt 0:07:30]} Kb3 {[%emt 0:05:06] ...Rg8 is the strong threat.} 44. Rxh7 {[%emt 0:07:13] Strongly threatening Rh3+.} Rg8 {[%emt 0:06:53][%cal Rg8g1]} 45. Rh3+ {[%emt 0:05:20]} (45. Kc1 $11) 45... Bc3 $15 {[%emt 0:01:05][%cal Rg8g1][%mdl 1024] Black has compensation.} 46. Rh1 {[%emt 0:00:09] Prevents Rg1+.} Rd8 $1 {[%emt 0:01:01][%cal Od8d2] Prevents Nd5. Hoping for ...Rd2!} 47. Kc1 {[%emt 0:01:31] Inhibits Rd2.} Bb2+ {[%emt 0:04:34]} ({Of course not} 47... Kxa3 48. Kc2 Be5 49. Nc4+ Kb4 50. Nxe5 fxe5 51. Re1 $11) (47... Rd6 $1 $15 48. Nc8 Bb2+ 49. Kb1 Rd8) 48. Kb1 $11 {[%emt 0:00:26]} Rd2 {[%emt 0:00:48][%cal Ob2c3] Threatens to win with ...Bc3!} 49. Rf1 {[%emt 0:02:43]} ({Better is} 49. Rh3+ $11 Bc3 50. Kc1) 49... Bc3 $15 {[%emt 0:01:00][%cal Od2a2]} (49... Kxa3 50. Nc4+ Ka4 51. Nxd2 $18) ({Don't play} 49... Bxa3 50. Rf3+ Kb4 51. Rxa3 $11) 50. Kc1 $1 {[%emt 0:00:17]} Rd6 {[%emt 0:01:28]} (50... Kxa3 51. Nc4+ Kb4 52. Nxd2 $18) 51. Nc8 {[%emt 0:00:15]} Bb2+ {[%emt 0:02:30]} 52. Kb1 {[%emt 0:00:03]} Rd2 {[%emt 0:02:26]} (52... Rd3 $15) 53. Ne7 {[%emt 0:00:59] The position is equal.} Bc3 {[%emt 0:00:16][%cal Od2a2]} 54. Kc1 {[%emt 0:00:50]} Rd7 {[%emt 0:00:09]} 55. Ng6 {[%emt 0:01:22]} Rd4 {[%emt 0:00:49]} 56. Rf3 {[%emt 0:00:46]} Re4 {[%emt 0:00:30][%cal Re4e1]} 57. Rf1 {[%emt 0:00:11]} Re2 {[%emt 0:01:11]} 58. Nf4 {[%emt 0:00:54]} Rc2+ {[%emt 0:00:36]} (58... Ra2 $5 59. Kd1 $8 Kc4 $11) 59. Kd1 {[%emt 0:00:45]} Rd2+ {[%emt 0:00:05]} 60. Kc1 {[%emt 0:01:43]} Ra2 {[%emt 0:01:01][%cal Ra2a1]} 61. Kd1 {[%emt 0:00:03]} Kc4 {[%emt 0:00:00]} 62. Rf3 {[%emt 0:00:39]} Rxa3 {[%emt 0:00:17]} 63. Ke2 {[%emt 0:01:26]} Ra2+ {[%emt 0:00:03]} 64. Kf1 {[%emt 0:00:20]} Bd4 {[%emt 0:00:13]} 65. Ne2 {[%emt 0:00:12]} Be5 {[%emt 0:00:03]} 66. Rh3 {[%emt 0:00:33]} Rc2 {[%emt 0:00:10]} 67. Ra3 {[%emt 0:00:58]} Kd5 {[%emt 0:01:04]} 68. Ra4 {[%emt 0:00:10]} Rc8 {[%emt 0:00:00]} 69. Kf2 {[%emt 0:01:17]} Rh8 {[%emt 0:00:00]} 70. Nf4+ {[%emt 0:00:40]} Bxf4 {[%emt 0:00:08]} 71. Rxf4 $11 {[%emt 0:00:00] KR-KR} Ke5 {[%emt 0:00:30]} 72. Ra4 {[%emt 0:00:10]} Kxf5 {[%emt 0:00:30]} 73. Ra5+ {[%emt 0:00:00]} Kg4 {[%emt 0:00:00]} 74. Ra4+ {[%emt 0:00:09]} Kg5 {[%emt 0:00:00]} 75. Kg3 {[%emt 0:00:51]} Rb8 {[%emt 0:00:24]} 76. Ra3 {[%emt 0:00:20]} f5 {[%emt 0:00:00][%cal Bf6f5,Bf5f4,Bf4f3][%mdl 32]} 77. Rc3 {[%emt 0:01:05]} Rb4 {[%emt 0:00:00]} 78. Ra3 {[%emt 0:00:22]} Rg4+ {[%emt 0:00:38]} 79. Kf3 {[%emt 0:00:15]} Rh4 {[%emt 0:00:00]} 80. Kg3 {[%emt 0:00:19] Prevents Rh3+.} f4+ {[%emt 0:00:32]} 81. Kg2 {[%emt 0:00:15]} Kg4 {[%emt 0:00:19]} 82. Ra8 {[%emt 0:00:37]} f3+ {[%emt 0:00:05]} 83. Kg1 {[%emt 0:01:15]} Kg3 {[%emt 0:00:06] ( -> ...f2+)} 84. Rg8+ {[%emt 0:00:19]} Rg4 {[%emt 0:00:10]} 85. Rxg4+ {[%emt 0:00:13]} Kxg4 {[%emt 0:00:30]} 86. Kf2 {[%emt 0:00:30]} Kf4 {[%emt 0:00:00][%cal Bg4f4,Bf4e3,Be3f3][%mdl 32]} 87. Kf1 {[%emt 0:00:00]} Ke3 {[%emt 0:00:00]} (87... Kg3 $5 88. Kg1 $8 Kh4 $11) 88. Ke1 {[%emt 0:00:00]} f2+ {[%emt 0:00:12]} 89. Kf1 {[%emt 0:00:07]} Kf3 {[%emt 0:00:05] Blacks defense is rewarded with a draw.   Weighted Error Value: White=0.10 (very precise) /Black=0.08 (flawless)} 1/2-1/2